bitfinex/quotes_SOLUSD_20250402
["timestamp","ask_amount","ask_price","bid_price","bid_amount"]
[1743558606564,0.063,125.69,125.64,7.9592]
[1743558607251,0.063,125.69,125.64,88.8592]
[1743558612558,0.063,125.69,125.64,80.9]
[1743558612772,10.19390838,125.69,125.64,80.9]
[1743558613278,0.063,125.69,125.64,88.8591]
[1743558616071,0.063,125.69,125.64,80.9]
[1743558616289,1.73566157,125.64,125.62,0.03]
[1743558616578,10.13090838,125.63,125.62,0.03]
[1743558616744,16.53250838,125.63,125.62,0.03]
[1743558617142,16.67466995,125.63,125.62,0.03]
[1743558617382,16.67466995,125.63,125.56,80.9]
[1743558617383,0.14216157,125.62,125.56,80.9]
[1743558617553,10.13090838,125.6,125.56,80.9]
[1743558617745,7.9624,125.59,125.56,80.9]
[1743558618554,18.09330838,125.59,125.56,80.9]
[1743558618761,18.09330838,125.59,125.54,118.16424833]
[1743558618762,37.99930838,125.59,125.54,118.16424833]
[1743558618970,37.99930838,125.59,125.55,30.0]
[1743558619172,37.99930838,125.59,125.54,118.16424833]
[1743558620268,37.99930838,125.59,125.54,37.26424833]
[1743558620466,11.78716995,125.58,125.54,0.03]
[1743558620847,1.5141,125.58,125.54,0.03]
[1743558621972,9.4774,125.58,125.54,0.03]
[1743558625062,9.4774,125.58,125.54,80.93]
[1743558625672,0.14216157,125.57,125.54,80.93]
[1743558626579,0.14216157,125.57,125.54,0.03]
[1743558627067,14.45436157,125.57,125.54,0.03]
[1743558628660,6.3483,125.57,125.54,0.03]
[1743558630082,14.312,125.57,125.54,0.03]
[1743558630881,6.3483,125.57,125.54,0.03]
[1743558631262,1.5141,125.58,125.54,0.03]
[1743558631681,1.5141,125.58,125.54,80.93]
[1743558633878,9.4771,125.58,125.54,80.93]
[1743558634086,7.963,125.58,125.54,80.93]
[1743558635511,23.93192798,125.59,125.54,80.93]
[1743558635674,15.82736641,125.58,125.54,80.93]
[1743558636794,15.82736641,125.58,125.54,0.03]
[1743558637594,7.9636,125.57,125.54,0.03]
[1743558641105,7.963,125.58,125.54,0.03]
[1743558646617,8.10486157,125.59,125.54,0.03]
[1743558646817,7.9627,125.59,125.54,0.03]
[1743558647110,1.5769,125.62,125.55,7.04]
[1743558647318,9.5376,125.62,125.55,87.94]
[1743558647522,1.5769,125.62,125.56,18.64964886]
[1743558647697,0.063,125.63,125.56,18.64964886]
[1743558648221,8.023,125.63,125.56,18.64964886]
[1743558648819,0.063,125.63,125.57,7.9636]
[1743558649019,0.063,125.63,125.57,88.8636]
[1743558649220,250.0,125.59,125.57,88.8636]
[1743558655096,250.0,125.59,125.57,80.9]
[1743558655312,250.0,125.59,125.57,87.94]
[1743558656013,250.0,125.59,125.57,80.9]
[1743558660419,250.0,125.59,125.57,88.8636]
[1743558661005,250.0,125.59,125.57,80.9]
[1743558662918,257.9624,125.59,125.55,0.03]
[1743558664615,250.0,125.59,125.56,0.14216157]
[1743558665624,250.0,125.59,125.57,7.9636]
[1743558665933,250.0,125.59,125.58,7.04]
[1743558667624,250.0,125.59,125.58,15.003]
[1743558668827,250.0,125.59,125.58,17.94689745]
[1743558669124,250.0,125.59,125.58,98.84689745]
[1743558669712,250.0,125.59,125.58,90.88389745]
[1743558670028,147.57661542,125.59,125.58,114.836972]
[1743558670327,0.063,125.62,125.6,18.64964886]
[1743558670508,0.063,125.62,125.6,53.52161772]
[1743558671613,0.063,125.62,125.6,61.48301772]
[1743558673325,0.063,125.62,125.6,60.48301772]
[1743558680112,0.063,125.62,125.58,34.87196886]
[1743558680312,10.19522881,125.62,125.56,49.90606886]
[1743558680612,10.19522881,125.62,125.56,41.94196886]
[1743558680613,0.063,125.62,125.56,41.94196886]
[1743558680830,0.063,125.62,125.56,49.90626886]
[1743558681344,0.063,125.62,125.57,18.64964886]
[1743558682237,0.063,125.62,125.58,7.963]
[1743558682438,0.063,125.62,125.59,18.64964886]
[1743558682630,0.063,125.62,125.6,7.04]
[1743558683714,0.063,125.62,125.6,34.37196887]
[1743558683919,0.063,125.62,125.61,7.04]
[1743558688344,0.063,125.62,125.61,15.0011]
[1743558688750,0.063,125.62,125.61,33.65074886]
[1743558689352,0.063,125.62,125.61,7.04]
[1743558689734,0.063,125.62,125.61,41.41196887]
[1743558690657,0.063,125.62,125.61,68.02271773]
[1743558692245,0.063,125.62,125.61,41.41196887]
[1743558692659,0.28432314,125.61,125.6,0.03]
[1743558692956,0.28432314,125.61,125.55,0.03]
[1743558692957,31.96495195,125.61,125.55,0.03]
[1743558693142,10.13222881,125.58,125.55,0.03]
[1743558693342,6.2375,125.57,125.55,0.03]
[1743558693747,14.2011,125.57,125.55,0.03]
[1743558695052,24.33332881,125.57,125.55,0.03]
[1743558695257,25.97612881,125.57,125.55,0.03]
[1743558701944,26.11829038,125.57,125.55,0.03]
[1743558702174,10.13222881,125.56,125.54,0.03]
[1743558702354,10.13222881,125.55,125.54,0.03]
[1743558703345,18.09712881,125.55,125.54,0.03]
[1743558704866,18.23929038,125.55,125.54,0.03]
[1743558706284,18.38145195,125.55,125.54,0.03]
[1743558706774,0.14216157,125.54,125.53,0.03]
[1743558706989,16.87109038,125.54,125.53,0.03]
[1743558707410,17.01325195,125.54,125.53,0.03]
[1743558707908,24.97875195,125.54,125.53,0.03]
[1743558708709,0.14216157,125.53,125.46,37.24320727]
[1743558708919,10.13222881,125.52,125.46,37.24320727]
[1743558710111,7.9674,125.51,125.46,37.24320727]
[1743558710514,1.70496157,125.5,125.46,2.8712384]
[1743558710686,16.72032881,125.49,125.46,2.8712384]
[1743558711014,0.14216157,125.48,125.46,2.8712384]
[1743558712008,8.11216157,125.47,125.46,2.8712384]
[1743558712317,20.05175195,125.47,125.46,2.8712384]
[1743558713686,1.6652,125.47,125.46,2.8712384]
[1743558714310,9.77736157,125.47,125.46,2.8712384]
[1743558714689,19.90959038,125.47,125.46,2.9012384]
[1743558715604,38.70140081,125.47,125.46,2.9012384]
[1743558717701,19.90959038,125.47,125.46,2.9012384]
[1743558717905,11.93959038,125.47,125.46,2.9012384]
[1743558718114,1.80736157,125.47,125.46,2.9012384]
[1743558721816,9.77736157,125.47,125.46,2.9012384]
[1743558722726,19.90959038,125.47,125.46,2.9012384]
[1743558726121,11.93959038,125.47,125.46,2.9012384]
[1743558726317,1.521,125.51,125.46,2.9012384]
[1743558726617,9.4886,125.51,125.46,2.9012384]
[1743558726797,19.62082881,125.51,125.46,2.9012384]
[1743558727001,10.13222881,125.49,125.46,2.9012384]
[1743558728432,18.10132881,125.49,125.46,2.9012384]
[1743558730536,0.14216157,125.48,125.46,2.9012384]
[1743558730822,10.27439038,125.48,125.46,2.9012384]
[1743558731418,10.27439038,125.47,125.46,2.9012384]
[1743558731804,0.14216157,125.47,125.46,2.9012384]
[1743558732827,18.24439038,125.47,125.46,2.9012384]
[1743558733324,8.11216157,125.47,125.46,2.9012384]
[1743558733827,7.9696,125.48,125.46,2.9012384]
[1743558734223,0.14216157,125.47,125.46,2.9012384]
[1743558734730,1.66316157,125.51,125.46,10.8717384]
[1743558735028,1.521,125.51,125.46,10.8717384]
[1743558735331,9.4886,125.51,125.46,10.8717384]
[1743558735528,16.21022881,125.53,125.46,10.8717384]
[1743558735833,0.20516157,125.53,125.46,17.4809384]
[1743558736130,24.01386185,125.53,125.46,17.4809384]
[1743558736930,15.98456185,125.51,125.46,2.9012384]
[1743558737404,15.98456185,125.51,125.46,10.8716384]
[1743558737610,0.14216157,125.51,125.46,10.8716384]
[1743558738036,8.0293,125.53,125.46,10.8716384]
[1743558738220,23.87170028,125.53,125.46,10.8716384]
[1743558739326,8.10916157,125.52,125.46,10.8716384]
[1743558739743,23.95156185,125.52,125.46,10.8716384]
[1743558741238,0.14216157,125.48,125.46,2.9012384]
[1743558741532,15.98456185,125.48,125.46,2.9012384]
[1743558741921,0.14216157,125.48,125.46,2.9012384]
[1743558742126,17.40220028,125.49,125.46,2.9012384]
[1743558742319,1.5598,125.49,125.46,2.9012384]
[1743558742939,15.98456185,125.5,125.46,2.9012384]
[1743558743839,8.11026157,125.5,125.46,2.9012384]
[1743558745944,258.11026157,125.5,125.46,2.9012384]
[1743558747433,250.0,125.5,125.46,2.9012384]
[1743558747743,250.0,125.5,125.46,10.8717384]
[1743558748834,250.0,125.5,125.46,45.24370727]
[1743558753656,250.0,125.5,125.49,38.64964886]
[1743558753833,250.0,125.5,125.49,80.06161773]
[1743558755955,250.0,125.5,125.49,88.03031773]
[1743558756253,250.0,125.5,125.49,61.41196887]
[1743558756645,250.0,125.5,125.49,7.04]
[1743558757447,250.0,125.5,125.49,15.0087]
[1743558762353,250.0,125.5,125.49,33.65834886]
[1743558762542,250.0,125.5,125.49,33.942672]
[1743558763048,250.0,125.5,125.49,68.31464087]
[1743558774061,18.03644341,125.5,125.49,75.48044087]
[1743558774253,0.063,125.53,125.52,40.28432314]
[1743558774451,0.063,125.53,125.52,74.65629201]
[1743558775038,0.063,125.53,125.52,54.65629201]
[1743558775245,0.063,125.53,125.52,54.37196887]
[1743558776663,0.063,125.53,125.52,34.37196887]
[1743558777249,0.063,125.53,125.52,60.98841773]
[1743558778446,0.063,125.53,125.52,61.27274087]
[1743558780460,0.063,125.54,125.53,20.28432314]
[1743558780764,0.063,125.54,125.53,27.32432314]
[1743558780960,0.063,125.54,125.53,7.04]
[1743558781170,0.063,125.54,125.53,25.68964886]
[1743558781467,0.063,125.54,125.53,7.04]
[1743558782668,0.063,125.54,125.52,34.37196887]
[1743558783264,0.063,125.54,125.53,18.64964886]
[1743558784665,0.063,125.54,125.53,26.61584886]
[1743558784863,0.063,125.54,125.52,42.33846887]
[1743558787168,0.063,125.54,125.52,42.36846887]
[1743558788571,0.063,125.54,125.52,34.40196887]
[1743558788748,1.5118,125.53,125.52,34.40196887]
[1743558790766,7.7693,125.53,125.52,0.03]
[1743558791156,15.7355,125.53,125.52,0.03]
[1743558791469,7.7693,125.53,125.52,0.03]
[1743558792372,1.5118,125.53,125.52,7.9968]
[1743558792575,0.063,125.54,125.52,0.03]
[1743558793448,0.063,125.54,125.52,34.40196887]
[1743558793647,0.063,125.54,125.53,25.68964886]
[1743558794371,0.063,125.54,125.53,25.973972]
[1743558794674,6.1268,125.6,125.55,18.64964886]
[1743558794675,7.7342,125.6,125.55,18.64964886]
[1743558794852,7.7342,125.6,125.55,53.02161773]
[1743558795673,15.6963,125.6,125.55,34.37196887]
[1743558795863,25.82929587,125.6,125.55,34.37196887]
[1743558796579,15.6963,125.6,125.55,34.37196887]
[1743558798261,25.82929587,125.6,125.55,34.37196887]
[1743558799286,45.79669587,125.6,125.55,34.37196887]
[1743558799468,35.6637,125.6,125.55,34.37196887]
[1743558799771,15.7593,125.6,125.55,34.37196887]
[1743558799970,7.7972,125.6,125.55,42.33686887]
[1743558800172,7.7972,125.6,125.56,18.64964886]
[1743558800380,7.7972,125.6,125.56,38.64964886]
[1743558800583,1.6704,125.6,125.56,38.64964886]
[1743558800880,1.6704,125.6,125.56,73.02161773]
[1743558802089,0.063,125.6,125.56,73.02161773]
[1743558803881,0.063,125.6,125.57,7.9636]
[1743558804082,0.063,125.6,125.58,25.66964886]
[1743558804284,0.063,125.6,125.58,60.04161773]
[1743558807390,0.063,125.63,125.62,33.63014886]
[1743558808284,0.063,125.63,125.62,7.02]
[1743558809084,0.063,125.63,125.62,25.66964886]
[1743558809587,0.063,125.63,125.62,33.63014886]
[1743558809977,0.063,125.63,125.62,67.93911773]
[1743558810478,0.063,125.63,125.62,59.97861773]
[1743558813070,0.063,125.63,125.62,67.93911773]
[1743558814994,0.063,125.63,125.62,59.97861773]
[1743558815771,0.063,125.63,125.62,41.32896887]
[1743558817592,0.063,125.63,125.6,34.30896887]
[1743558817797,1.7075,125.63,125.6,41.32896887]
[1743558818491,0.063,125.63,125.61,38.933972]
[1743558819074,0.063,125.63,125.61,46.894672]
[1743558819588,0.063,125.63,125.61,81.20364087]
[1743558820898,0.063,125.63,125.61,61.20364087]
[1743558821195,0.063,125.63,125.61,34.30896887]
[1743558821377,0.063,125.63,125.61,41.32896887]
[1743558822484,0.063,125.63,125.61,34.30896887]
[1743558822684,0.063,125.63,125.61,41.32896887]
[1743558824001,1.5144,125.62,125.59,34.30896887]
[1743558824210,1.5144,125.62,125.61,0.03]
[1743558827208,0.063,125.63,125.61,0.03]
[1743558827496,0.063,125.63,125.61,42.30006887]
[1743558830783,0.063,125.63,125.62,7.02]
[1743558832000,0.063,125.63,125.62,14.9805]
[1743558833305,0.063,125.63,125.62,49.28946887]
[1743558833511,0.063,125.63,125.62,88.22344087]
[1743558835313,0.063,125.63,125.62,67.93911773]
[1743558836007,0.063,125.63,125.62,41.32896887]
[1743558837210,0.063,125.63,125.62,49.28946887]
[1743558838314,0.063,125.63,125.62,42.26946887]
[1743558838512,0.063,125.63,125.62,49.28946887]
[1743558840815,0.063,125.63,125.62,41.32896887]
[1743558842926,0.063,125.63,125.61,0.03]
[1743558847218,1.5892,125.62,125.61,0.03]
[1743558847732,9.5497,125.62,125.61,0.03]
[1743558848238,25.35612314,125.62,125.61,0.03]
[1743558848522,25.35612314,125.62,125.55,60.92331773]
[1743558848700,15.80642314,125.61,125.55,60.92331773]
[1743558848901,15.80642314,125.61,125.55,67.94331773]
[1743558849431,15.80642314,125.61,125.55,60.92331773]
[1743558849723,1.5892,125.62,125.55,60.92331773]
[1743558849724,30.02492314,125.6,125.55,41.32896887]
[1743558851111,17.39172314,125.59,125.55,41.32896887]
[1743558851622,25.35442314,125.59,125.55,41.32896887]
[1743558851827,9.548,125.59,125.55,41.32896887]
[1743558852002,9.548,125.59,125.55,34.30896887]
[1743558852922,25.35442314,125.59,125.55,34.30896887]
[1743558853129,9.548,125.59,125.55,34.30896887]
[1743558853502,1.5853,125.59,125.55,34.30896887]
[1743558853732,1.5853,125.59,125.55,42.27376887]
[1743558859239,1.5853,125.59,125.55,42.30376887]
[1743558861167,1.5853,125.59,125.56,18.64964886]
[1743558861350,1.6416,125.62,125.58,18.64964886]
[1743558861642,1.6416,125.62,125.58,52.95861773]
[1743558861943,6.2574,125.63,125.59,7.9624]
[1743558863131,14.2172,125.63,125.58,60.92151773]
[1743558863349,10.1270529,125.62,125.58,34.30896887]
[1743558863545,14.2172,125.63,125.58,34.30896887]
[1743558863546,24.3442529,125.63,125.58,34.30896887]
[1743558864049,24.3442529,125.63,125.58,42.27186887]
[1743558864050,6.2574,125.63,125.58,42.27186887]
[1743558866219,0.063,125.63,125.59,18.64964886]
[1743558867669,0.063,125.63,125.6,7.9617]
[1743558868535,0.063,125.63,125.61,7.02]
[1743558870338,0.063,125.63,125.61,14.9809]
[1743558874428,0.063,125.63,125.61,49.28986887]
[1743558879149,0.063,125.63,125.61,41.32896887]
[1743558879349,0.063,125.63,125.61,34.30896887]
[1743558879958,6.0612,125.62,125.61,34.30896887]
[1743558880339,6.0612,125.62,125.58,49.29186887]
[1743558883688,6.0612,125.62,125.61,0.03]
[1743558883835,14.0217,125.62,125.61,0.03]
[1743558885255,6.0612,125.62,125.61,0.03]
[1743558891964,0.063,125.63,125.61,0.03]
[1743558894763,0.063,125.62,125.61,0.03]
[1743558895688,8.0235,125.62,125.61,0.03]
[1743558897666,0.063,125.62,125.61,0.03]
[1743558902178,11.84361447,125.62,125.61,0.03]
[1743558902377,0.14216157,125.61,125.56,34.30896887]
[1743558902586,10.1270529,125.6,125.55,0.03]
[1743558903392,10.1270529,125.59,125.55,0.03]
[1743558903581,7.963,125.58,125.55,0.03]
[1743558904768,30.0316529,125.6,125.55,0.03]
[1743558904769,7.9624,125.59,125.55,0.03]
[1743558908084,1.5419,125.57,125.55,0.03]
[1743558908793,11.6689529,125.57,125.55,0.03]
[1743558908998,1.5419,125.57,125.55,0.03]
[1743558910081,7.9643,125.56,125.55,0.03]
[1743558914105,18.0913529,125.56,125.55,0.03]
[1743558914493,18.23351447,125.56,125.55,0.03]
[1743558918794,7.9624,125.59,125.55,0.03]
[1743558918997,9.4758,125.6,125.55,34.33896887]
[1743558919307,6.85116157,125.61,125.57,18.64964886]
[1743558919308,0.063,125.61,125.57,18.64964886]
[1743558919509,0.063,125.61,125.58,7.02]
[1743558924391,0.063,125.61,125.58,87.92]
[1743558928000,0.063,125.61,125.58,80.9]
[1743558930125,0.063,125.61,125.57,87.92]
[1743558930846,10.1270529,125.6,125.57,80.9]
[1743558931219,10.1270529,125.6,125.55,0.03]
[1743558931412,7.963,125.58,125.55,0.03]
[1743558931725,18.0900529,125.58,125.55,0.03]
[1743558931906,10.1270529,125.57,125.55,0.03]
[1743558932106,18.0900529,125.58,125.55,0.03]
[1743558934127,10.26921447,125.57,125.55,0.03]
[1743558934334,10.1270529,125.56,125.55,0.03]
[1743558934926,10.26921447,125.57,125.55,0.03]
[1743558936234,7.9643,125.56,125.55,0.03]
[1743558937119,18.0913529,125.56,125.55,0.03]
[1743558937625,7.9643,125.56,125.55,0.03]
[1743558942229,9.5578,125.56,125.55,0.03]
[1743558945136,9.69996157,125.56,125.55,0.03]
[1743558945637,19.82701447,125.56,125.55,0.03]
[1743558945830,26.38647604,125.56,125.55,0.03]
[1743558946154,0.14216157,125.55,125.54,0.03]
[1743558946328,10.26921447,125.55,125.54,0.03]
[1743558947445,18.23411447,125.55,125.54,0.03]
[1743558947819,98.97627604,125.55,125.54,0.03]
[1743558948217,98.97627604,125.55,125.54,0.0001]
[1743558952321,0.14216157,125.54,125.53,0.0001]
[1743558952527,10.41137604,125.54,125.53,0.0001]
[1743558952743,18.933972,125.53,125.52,0.0001]
[1743558952940,29.0610249,125.53,125.52,0.0001]
[1743558953127,109.6610249,125.53,125.52,0.0001]
[1743558954360,117.6272249,125.53,125.52,0.0001]
[1743558956721,98.97757604,125.53,125.52,0.0001]
[1743558956944,88.70836157,125.53,125.52,0.0001]
[1743558957251,98.83541447,125.53,125.52,0.0001]
[1743558957948,98.97757604,125.53,125.52,0.0001]
[1743558959227,98.83541447,125.53,125.52,0.0001]
[1743558960548,0.063,125.55,125.52,0.0001]
[1743558961749,8.028,125.55,125.52,0.0001]
[1743558962752,10.1270529,125.54,125.52,0.0001]
[1743558963857,8.10816157,125.54,125.52,0.0001]
[1743558968746,10.26921447,125.53,125.52,0.0001]
[1743558968958,11.85781447,125.53,125.52,0.0001]
[1743558969757,1.73076157,125.53,125.52,0.0001]
[1743558970144,11.85781447,125.53,125.52,0.0001]
[1743558970968,19.82401447,125.53,125.52,0.0001]
[1743558972052,9.69696157,125.53,125.52,0.0001]
[1743558972252,0.063,125.55,125.52,0.0001]
[1743558973767,8.0281,125.55,125.52,0.0001]
[1743558980161,10.26921447,125.54,125.52,0.0001]
[1743558980365,10.1270529,125.53,125.52,0.0001]
[1743558981358,18.0932529,125.53,125.52,0.0001]
[1743558982864,0.063,125.55,125.52,0.0001]
[1743558983965,8.028,125.55,125.52,0.0001]
[1743558992960,608.028,125.55,125.52,0.0001]
[1743558995076,618.1550529,125.55,125.52,0.0001]
[1743558996070,608.028,125.55,125.52,0.0001]
[1743558999480,600.063,125.55,125.52,0.0001]
[1743558999977,600.063,125.55,125.53,7.02]
[1743559001678,600.063,125.55,125.53,14.9857]
[1743559002066,600.063,125.55,125.53,7.02]
[1743559002686,600.063,125.55,125.53,14.9861]
[1743559003684,600.063,125.55,125.53,95.8861]
[1743559004087,600.063,125.55,125.53,87.92]
[1743559008371,600.063,125.55,125.53,95.8862]
[1743559008799,600.063,125.55,125.53,87.92]
[1743559009372,600.063,125.55,125.53,7.02]
[1743559010011,608.028,125.55,125.52,80.9001]
[1743559010210,609.5328,125.55,125.52,0.0001]
[1743559010401,619.6598529,125.55,125.52,0.0001]
[1743559014371,10.1270529,125.53,125.52,0.0001]
[1743559014589,10.26921447,125.54,125.52,0.0001]
[1743559015590,7.9662,125.53,125.52,0.0001]
[1743559016278,18.23541447,125.53,125.52,0.0001]
[1743559017987,8.10836157,125.53,125.52,0.0001]
[1743559018399,7.9662,125.53,125.52,0.0001]
[1743559018689,7.9658,125.54,125.52,0.0001]
[1743559026355,609.533,125.55,125.52,0.0001]
[1743559026496,601.5678,125.55,125.52,0.0001]
[1743559026811,600.063,125.55,125.52,0.0001]
[1743559028022,608.0281,125.55,125.52,0.0001]
[1743559028525,600.063,125.55,125.52,0.0001]
[1743559029186,600.063,125.55,125.52,80.9001]
[1743559029911,600.0,125.54,125.52,88.8666]
[1743559031109,600.0,125.54,125.52,80.9001]
[1743559031797,600.0,125.54,125.52,88.8669]
[1743559034524,600.0,125.54,125.52,80.9001]
[1743559035429,600.063,125.54,125.52,80.9001]
[1743559036109,608.0285,125.54,125.52,80.9001]
[1743559037403,608.0285,125.54,125.52,0.0001]
[1743559039323,619.7433529,125.54,125.52,0.0001]
[1743559039826,10.1270529,125.53,125.52,0.0001]
[1743559040425,10.26921447,125.53,125.52,0.0001]
[1743559041906,18.23541447,125.53,125.52,0.0001]
[1743559050141,18.0932529,125.53,125.52,0.0001]
[1743559052139,7.9662,125.53,125.52,0.0001]
[1743559057345,609.6166,125.54,125.52,0.0001]
[1743559059845,0.063,125.53,125.52,0.0001]
[1743559064329,0.063,125.53,125.52,80.9001]
[1743559064529,0.063,125.53,125.52,0.0001]
[1743559065041,600.063,125.54,125.53,6.30942314]
[1743559066126,498.57741572,125.54,125.53,32.925272]
[1743559070850,498.57741572,125.54,125.53,113.825272]
[1743559071749,498.57741572,125.54,125.53,113.855272]
[1743559078249,498.57741572,125.54,125.53,107.830172]
[1743559080150,350.01593144,125.54,125.53,107.830172]
[1743559080335,162.56041176,125.54,125.53,33.234372]
[1743559080539,94.07618316,125.54,125.53,33.234372]
[1743559080743,11.87593088,125.54,125.53,33.234372]
[1743559080942,3.088e-05,125.54,125.53,42.37636691]
[1743559081454,0.063,125.61,125.58,0.28432314]
[1743559081752,0.063,125.63,125.62,38.933972]
[1743559081960,0.063,125.63,125.62,127.794472]
[1743559082833,0.063,125.63,125.62,131.84550296]
[1743559084257,0.063,125.63,125.62,123.88500296]
[1743559084560,0.063,125.63,125.62,119.833972]
[1743559086367,0.063,125.66,125.65,18.64964886]
[1743559086535,0.063,125.66,125.65,106.48664886]
[1743559088358,0.063,125.66,125.65,114.44524886]
[1743559089359,0.063,125.66,125.65,114.729572]
[1743559094468,0.063,125.66,125.65,7.0]
[1743559094773,0.063,125.66,125.64,80.837]
[1743559103480,0.063,125.66,125.65,18.933972]
[1743559103780,0.063,125.66,125.65,38.933972]
[1743559104375,0.063,125.68,125.66,80.774]
[1743559104555,0.063,125.68,125.67,20.28432314]
[1743559104748,0.063,125.68,125.67,27.28432314]
[1743559105670,0.063,125.68,125.67,35.24162314]
[1743559106389,0.063,125.68,125.67,15.24162314]
[1743559106777,0.063,125.68,125.67,7.0]
[1743559111786,0.063,125.68,125.67,33.60694886]
[1743559112389,0.063,125.68,125.67,114.38094886]
[1743559114694,0.063,125.68,125.67,87.774]
[1743559115400,0.063,125.68,125.67,80.774]
[1743559119608,0.063,125.68,125.67,80.804]
[1743559120823,6.6381,125.68,125.67,0.03]
[1743559121311,8.2632,125.68,125.67,0.03]
[1743559121503,18.3902529,125.68,125.67,0.03]
[1743559122307,26.3469529,125.68,125.67,0.03]
[1743559123121,16.2199,125.68,125.67,0.03]
[1743559126733,8.2632,125.68,125.67,0.03]
[1743559128108,1.6881,125.68,125.67,0.03]
[1743559132924,0.063,125.68,125.67,0.03]
[1743559133232,0.063,125.68,125.67,26.63694886]
[1743559133923,0.063,125.68,125.67,107.41094886]
[1743559139820,0.063,125.68,125.67,80.804]
[1743559140227,0.063,125.68,125.67,88.7613]
[1743559140417,0.063,125.68,125.67,107.41094886]
[1743559141116,0.063,125.68,125.67,80.804]
[1743559144330,0.063,125.68,125.67,0.03]
[1743559153742,0.063,125.68,125.67,99.45364886]
[1743559154039,50.063,125.68,125.67,99.45364886]
[1743559154429,50.063,125.68,125.67,107.41094886]
[1743559158442,50.063,125.68,125.67,107.695272]
[1743559158618,50.063,125.68,125.67,127.695272]
[1743559160524,50.063,125.68,125.67,107.41094886]
[1743559160726,50.063,125.68,125.67,114.41094886]
[1743559161518,50.063,125.68,125.67,106.45364886]
[1743559161927,50.063,125.68,125.67,114.41094886]
[1743559162228,50.063,125.68,125.67,106.45364886]
[1743559163024,50.063,125.68,125.67,114.41094886]
[1743559168241,50.063,125.68,125.67,134.695272]
[1743559169958,50.063,125.68,125.67,80.804]
[1743559170134,57.6301,125.68,125.67,0.03]
[1743559171834,65.5868,125.68,125.67,0.03]
[1743559174651,57.6301,125.68,125.67,0.03]
[1743559175349,65.5868,125.68,125.67,0.03]
[1743559176340,57.6301,125.68,125.67,0.03]
[1743559181257,65.5868,125.68,125.67,0.03]
[1743559187563,57.6301,125.68,125.67,0.03]
[1743559187964,50.063,125.68,125.67,0.03]
[1743559190278,58.0197,125.68,125.67,0.03]
[1743559194974,50.063,125.68,125.67,0.03]
[1743559199985,50.063,125.68,125.67,80.804]
[1743559200590,50.063,125.68,125.67,107.41094886]
[1743559200778,37.87069857,125.68,125.67,107.695272]
[1743559201095,0.063,125.72,125.71,18.64964886]
[1743559201390,0.063,125.72,125.71,106.42364886]
[1743559201594,0.063,125.72,125.71,80.774]
[1743559201791,18.1441529,125.72,125.67,7.01]
[1743559202784,0.063,125.68,125.67,7.01]
[1743559204885,0.063,125.68,125.67,0.03]
[1743559206499,8.0197,125.68,125.67,0.03]
[1743559208801,18.1467529,125.68,125.67,0.03]
[1743559210186,18.43107604,125.68,125.67,0.0001]
[1743559210794,1.5654,125.65,125.61,0.03]
[1743559210995,10.1270529,125.64,125.61,0.03]
[1743559211192,11.6924529,125.65,125.61,0.03]
[1743559213087,1.6284,125.68,125.62,18.64964886]
[1743559213266,1.6284,125.68,125.63,6.98]
[1743559213470,1.6284,125.68,125.64,18.64964886]
[1743559213670,0.063,125.68,125.64,18.64964886]
[1743559214561,0.063,125.68,125.63,6.98]